{"text_format":"1","workbook":"xlsx","n_sheets":3,"sheets":["Forside","Medarbejder personoplysninger","dropdown"],"not_rendered":{"charts":0,"images":3,"macros":1,"external_links":0,"defined_names":2,"comments":0,"pivot_tables":0},"unopened":[],"bounds":{"document_bytes":16777216,"sheet_cells":100000,"rows_first":2000,"rows_last":500,"rows_between":2000,"halvings":0,"cell_chars":16384,"cell_head_chars":4096},"cells_cut":0,"cells_raw":0,"read":"whole","date_system":"1900"}

{"sheet":"Forside","index":0,"n_rows":29,"n_cols":9,"rows_kept":29,"cut":false,"hidden":false,"merged":[[14,1,14,2],[23,1,23,2]]}
[]
[null,"(Virksomhedens navn)"]
[null,"Adresse"]
[null,"Adresse"]
[null,"Telefonnummer"]
[null,"E-mailadresse"]
[]
[null,"VIRKSOMHEDSDATA","BESKRIV"]
[null,"Virksomhedsform"]
[null,"CVR-nummer og/eller P-nummer"]
[null,"Antal ansatte"]
[null,"Antal beboere / klienter / elever"]
[]
[]
[null,"2017-06-16"]
[null,"PRIVACYCHECK UDFØRT AF:"]
[]
[null,"NAVN","STILLING","DATO",null,"DP SOLUTIONS /NAVN",null,null,"DATO"]
[]
[]
[]
[]
[]
[]
[]
[]
[null,null,null,null,null,"Aa Louis- Hansens Alle 2"]
[null,null,null,null,null,"3060 Espergærde"]
[null,null,null,null,null,"TELEFON +45 50 21 41 46| EMAIL info@dp-soulitions.dk"]

{"sheet":"Medarbejder personoplysninger","index":1,"n_rows":78,"n_cols":15,"rows_kept":78,"cut":false,"hidden":false,"merged":[[0,0,0,1]]}
["GDPR-doc C-5_Askov Fortegnelsesregneark HR Personale"]
[]
[null,null,null,null,null,null,null,null,null,null,null,null,"Skal kun udfyldes for personer som faktisk er ansat, ikke ved rekrutering."]
["Hvilke persondata registreres?","Ja/Nej","Hvilken følsomhed har oplysningerne?","Hvor kommer oplysninger fra?","Med hvilket formål behandles oplysningerne?","Med hvilken hjemmel behandles oplysningerne?","Hvordan opbevares data (analogt eller digitalt)?","Opbevares data på en hosted løsning?","Er der databehandleraftale ?","Anvendes samtykke?","Overholdes oplysningspligten?","Hvornår slettes data for ansøgere som ikke ansættes ?","Oplysninger der sletter UNDER ansættelsen","Oplysninger der slettes for løstansatte og elever","Oplysninger der slettes EFTER ansættelsen"]
["Her skal angives, hvilke personoplysninger der indsamles i forbindelse med ansættelse. Personoplysninger er enhver form for information om en identificeret eller identificerbar fysisk person, jf. art. 4, nr. 1\n","Ud for hver linje i kolonne A, skal du tage stilling til, om det er en oplysning, som I registrerer.\nHvis det er en oplysning, som I registrerer, skal du vælge \"Ja\" i dropdown menu - hvis ikke, skal du vælge \"Nej\".\nRegistrerer I yderligere oplysninger, der ikke findes på listen, skal du indsætte en ny linje i Kolonne A og skrive den pågældende oplysning ind.","Der er forskel på persondatas følsomhed, og det skal angives, hvilken følsomhed de enkelte oplysninger har. Almindelig - art 6, Følsomme oplysninger - art 9 , semifølsomme persondata vedrørende straffedomme og lovovertrædelser af artikel 10, CPR-nummer -art. 87","Det skal afgøres om personoplysningerne indsamles hos den registrerede, fra tredjemand eller om det er oplysninger, som den dataansvarlige selv genererer.  ","Der skal angives et formål med behandlingen af personoplysningerne. Formålet skal være tilstrækkeligt præcist, og der må som udgangspunkt ikke ske behandling til andre formål. Art. 30., stk.1 punkt B","Man må ikke behandle personoplysninger, med mindre man har et retligt grundlag - f.eks. gennem samtykke, i medfør af kontrakt, ud fra en afvejning af interesser eller i medfør af lovgivning. Det retlige grundlag skal angives. (lovlighed)","Findes data i IT-systemer eller i f.eks arkivskabe/papir ?","Hosting er, når en virksomhed vælger at lade en ekstern virksomhed overtage driften af deres IT-løsning. Det kan være hele virksomhedens IT-løsningen, eller kun enkelte områder, som f.eks. mail eller økonomisystemet. ","Hvis institutionen behandler persondate på en hoastet løsning, skal der være en databehandler aftale - er der det ?","Et samtykke skal være en frivillig, specifik, informeret og utvetydig viljestilkendegivelse, jf. art. 4, nr. 11\nSamtykket kan gives mundtligt og skriftligt, herunder elektronisk\n","Den registrerede skal informeres om:\nIdentitet og kontaktoplysninger på den dataansvarlige\nkontaktoplysninger for en evt. DPO\nFormål med behandling/hjemmel\nKategori af personoplysninger\nModtagere af oplysninger\nTidsrum for opbevaring af oplysninger\nRegistreredes rettigheder","Personoplysninger skal slettes når de ikke længere er nødvendige for at opfylde formålet. Hvornår slettes persondata for ansøgere som ikke bliver ansat ?","Personoplysninger skal slettes når de ikke længere er nødvendige for at opfylde formålet. Hvornår slettes persondata for fastansatte ?","Personoplysninger skal slettes når de ikke længere er nødvendige for at opfylde formålet. Hvornår slettes persondata for løstansatte, vikerer og elever","Personoplysninger skal slettes når de ikke længere er nødvendige for at opfylde formålet. Hvornår slettes persondata efter ansættelsesforholdets ophør ?"]
["Før ansættelse"]
["Almindelige persondata - artikel 6 ",null,null,null,null,null,null,null,null,null,null,"Ansøgere der IKKE bliver ansat "]
["Navn","Ja",{"$f":"IF(B8=\"ja\",\"Almindelige - art 6\",\"\")","v":"Almindelige - art 6"},"Fra den registrerede","Varetagelse af personaleadministration","Art. 6 stk. 1 b","Begge dele","Internt i eget IT-system","Nej","Ja","Ja","1-6 mdr"]
["Adresse","Ja",{"$f":"IF(B9=\"ja\",\"Almindelige - art 6\",\"\")","v":"Almindelige - art 6"},"Fra den registrerede","Varetagelse af personaleadministration",{"$f":"IF(C9=\"Almindelige - art 6\",\"Art. 6 stk. 1 b\",\"\")","v":"Art. 6 stk. 1 b"},"Begge dele","Internt i eget IT-system","Nej","Ja","Ja","1-6 mdr"]
["Telefonnummer","Ja",{"$f":"IF(B10=\"ja\",\"Almindelige - art 6\",\"\")","v":"Almindelige - art 6"},"Fra den registrerede","Varetagelse af personaleadministration",{"$f":"IF(C10=\"Almindelige - art 6\",\"Art. 6 stk. 1 b\",\"\")","v":"Art. 6 stk. 1 b"},"Begge dele","Internt i eget IT-system","Nej","Ja","Ja","1-6 mdr"]
["Særskilt registrering af køn","Ja",{"$f":"IF(B11=\"ja\",\"Almindelige - art 6\",\"\")","v":"Almindelige - art 6"},"Fra den registrerede","Varetagelse af personaleadministration",{"$f":"IF(C11=\"Almindelige - art 6\",\"Art. 6 stk. 1 b\",\"\")","v":"Art. 6 stk. 1 b"},"Begge dele","Internt i eget IT-system","Nej","Ja","Ja","1-6 mdr"]
["Ansøgning uden særligt følsomme persondata","ja",{"$f":"IF(B12=\"ja\",\"Almindelige - art 6\",\"\")","v":"Almindelige - art 6"},"Fra den registrerede","Varetagelse af personaleadministration",{"$f":"IF(C12=\"Almindelige - art 6\",\"Art. 6 stk. 1 b\",\"\")","v":"Art. 6 stk. 1 b"},"Begge dele","Internt i eget IT-system","Nej","Ja","Ja","1-6 mdr"]
["CV uden særligt følsomme persondata","Ja",{"$f":"IF(B13=\"ja\",\"Almindelige - art 6\",\"\")","v":"Almindelige - art 6"},"Fra den registrerede","Varetagelse af personaleadministration",{"$f":"IF(C13=\"Almindelige - art 6\",\"Art. 6 stk. 1 b\",\"\")","v":"Art. 6 stk. 1 b"},"Begge dele","Internt i eget IT-system","Nej","Ja","Ja","1-6 mdr"]
["Portrætfoto af ansøger","Ja",{"$f":"IF(B14=\"ja\",\"Almindelige - art 6\",\"\")","v":"Almindelige - art 6"},"Fra den registrerede","Varetagelse af personaleadministration",{"$f":"IF(C14=\"Almindelige - art 6\",\"Art. 6 stk. 1 b\",\"\")","v":"Art. 6 stk. 1 b"},"Begge dele","Internt i eget IT-system","Nej","Ja","Ja","1-6 mdr"]
["Eksamensbeviser","Ja",{"$f":"IF(B15=\"ja\",\"Almindelige - art 6\",\"\")","v":"Almindelige - art 6"},"Fra den registrerede","Varetagelse af personaleadministration",{"$f":"IF(C15=\"Almindelige - art 6\",\"Art. 6 stk. 1 b\",\"\")","v":"Art. 6 stk. 1 b"},"Begge dele","Internt i eget IT-system","Nej","Ja","Ja","1-6 mdr"]
["Noter fra referencer om ansøger uden særligt følsomme oplysninger","Ja",{"$f":"IF(B16=\"ja\",\"Almindelige - art 6\",\"\")","v":"Almindelige - art 6"},"Internt fra virksomheden","Varetagelse af personaleadministration",{"$f":"IF(C16=\"Almindelige - art 6\",\"Art. 6 stk. 1 b\",\"\")","v":"Art. 6 stk. 1 b"},"Begge dele","Internt i eget IT-system","Nej","Ja","Ja","1-6 mdr"]
["Noter fra ansættelsessamtaler uden særligt følsomme oplysninger","Ja",{"$f":"IF(B17=\"ja\",\"Almindelige - art 6\",\"\")","v":"Almindelige - art 6"},"Internt fra virksomheden","Varetagelse af personaleadministration",{"$f":"IF(C17=\"Almindelige - art 6\",\"Art. 6 stk. 1 b\",\"\")","v":"Art. 6 stk. 1 b"},"Begge dele","Internt i eget IT-system","Nej","Ja","Ja","1-6 mdr"]
["e-mailadresse","Ja",{"$f":"IF(B18=\"ja\",\"Almindelige - art 6\",\"\")","v":"Almindelige - art 6"},"Fra den registrerede","Varetagelse af personaleadministration",{"$f":"IF(C18=\"Almindelige - art 6\",\"Art. 6 stk. 1 b\",\"\")","v":"Art. 6 stk. 1 b"},"Begge dele","Internt i eget IT-system","Nej","Ja","Ja","1-6 mdr"]
["Personligshedstest uden særligt følsomme persondata","Ja",{"$f":"IF(B19=\"ja\",\"Almindelige - art 6\",\"\")","v":"Almindelige - art 6"},"Tredjemand f.eks. Tidligere arbejdsgivere","Varetagelse af personaleadministration",{"$f":"IF(C19=\"Almindelige - art 6\",\"Art. 6 stk. 1 b\",\"\")","v":"Art. 6 stk. 1 b"},"Begge dele","Internt i eget IT-system","Nej","Ja","Ja","1-6 mdr"]
["Skr. udtalelser fra tidligere arbejdsgivere","ja",{"$f":"IF(B20=\"ja\",\"Almindelige - art 6\",\"\")","v":"Almindelige - art 6"},"Fra den registrerede","Varetagelse af personaleadministration",{"$f":"IF(C20=\"Almindelige - art 6\",\"Art. 6 stk. 1 b\",\"\")","v":"Art. 6 stk. 1 b"},"Begge dele","Internt i eget IT-system","Nej","Ja","Ja","1-6 mdr"]
["Efter- og videreuddannelse","ja",{"$f":"IF(B21=\"ja\",\"Almindelige - art 6\",\"\")","v":"Almindelige - art 6"},"Fra den registrerede","Varetagelse af personaleadministration",{"$f":"IF(C21=\"Almindelige - art 6\",\"Art. 6 stk. 1 b\",\"\")","v":"Art. 6 stk. 1 b"},"Begge dele","Internt i eget IT-system","Nej","Ja","Ja","1-6 mdr"]
[]
["Følsomme persondata - artikel 9"]
["CV med særligt følsomme persondata","ja",{"$f":"IF(B24=\"ja\",\"Særligt følsomme - art 9\",\"\")","v":"Særligt følsomme - art 9"},"Fra den registrerede","Varetagelse af personaleadministration",{"$f":"IF(C24=\"Særligt følsomme - art 9\",\"Art. 9 stk. 2 b\",\"\")","v":"Art. 9 stk. 2 b"},"Begge dele","Internt i eget IT-system","Nej","Ja","Ja","1-6 mdr"]
["Ansøgning med særligt følsomme persondata (f.eks handicap/fleksjob)","ja",{"$f":"IF(B25=\"ja\",\"Særligt følsomme - art 9\",\"\")","v":"Særligt følsomme - art 9"},"Fra den registrerede","Pligtmæssig behandling i ansættelsesforhold.",{"$f":"IF(C25=\"Særligt følsomme - art 9\",\"Art. 9 stk. 2 b\",\"\")","v":"Art. 9 stk. 2 b"},"Begge dele","Internt i eget IT-system","Nej","Ja","Ja","1-6 mdr"]
["Noter fra referencer om ansøger med særligt følsomme oplysninger","Nej",{"$f":"IF(B26=\"ja\",\"Særligt følsomme - art 9\",\"\")","v":""},null,null,{"$f":"IF(C26=\"Særligt følsomme - art 9\",\"Art. 9 stk. 2 b\",\"\")","v":""}]
["Noter fra ansættelsessamtaler med særligt følsomme oplysninger","Ja",{"$f":"IF(B27=\"ja\",\"Særligt følsomme - art 9\",\"\")","v":"Særligt følsomme - art 9"},"Fra den registrerede","Varetagelse af personaleadministration",{"$f":"IF(C27=\"Særligt følsomme - art 9\",\"Art. 9 stk. 2 b\",\"\")","v":"Art. 9 stk. 2 b"},"Begge dele","Internt i eget IT-system","Nej","Ja","Ja","1-6 mdr"]
["Personligshedstest med særligt følsomme persondata","Ja",{"$f":"IF(B28=\"ja\",\"Særligt følsomme - art 9\",\"\")","v":"Særligt følsomme - art 9"},"Tredjemand f.eks. Tidligere arbejdsgivere","Varetagelse af personaleadministration",{"$f":"IF(C28=\"Særligt følsomme - art 9\",\"Art. 9 stk. 2 b\",\"\")","v":"Art. 9 stk. 2 b"},"Begge dele","Internt i eget IT-system","Nej","Ja","Ja","1-6 mdr"]
["Helbredsoplysninger","Ja",{"$f":"IF(B29=\"ja\",\"Særligt følsomme - art 9\",\"\")","v":"Særligt følsomme - art 9"},"Fra den registrerede","Varetagelse af personaleadministration",{"$f":"IF(C29=\"Særligt følsomme - art 9\",\"Art. 9 stk. 2 b\",\"\")","v":"Art. 9 stk. 2 b"},"Begge dele","Internt i eget IT-system","Nej","Ja","Ja","1-6 mdr"]
["Religiøs eller filosifisk overbevisning","Ja",{"$f":"IF(B30=\"ja\",\"Særligt følsomme - art 9\",\"\")","v":"Særligt følsomme - art 9"},"Fra den registrerede","Varetagelse af personaleadministration",{"$f":"IF(C30=\"Særligt følsomme - art 9\",\"Art. 9 stk. 2 b\",\"\")","v":"Art. 9 stk. 2 b"},"Begge dele","Internt i eget IT-system","Nej","Ja","Ja","1-6 mdr"]
["politisk overbevisning","Ja","Særligt følsomme - art 9","Fra den registrerede","Varetagelse af personaleadministration",{"$f":"IF(C31=\"Særligt følsomme - art 9\",\"Art. 9 stk. 2 b\",\"\")","v":"Art. 9 stk. 2 b"},"Begge dele","Internt i eget IT-system","Nej","Ja","Ja","1-6 mdr"]
["Strafbare forhold - artikel 10"]
["Straffeattest ","Nej",{"$f":"IF(B33=\"ja\",\"Særlige persondata - art 10\",\"\")","v":""},null,null,{"$f":"IF(C33=\"Særlige persondata - art 10\",\"Artikkel 10\",\"\")","v":""}]
["Børneattest","Ja",{"$f":"IF(B34=\"ja\",\"Særlige persondata - art 10\",\"\")","v":"Særlige persondata - art 10"},"Fra den registrerede","Varetagelse af personaleadministration",null,"Begge dele","Internt i eget IT-system","Nej","Ja","Ja","1-6 mdr"]
["samfundstjeneste","Ja",{"$f":"IF(B35=\"ja\",\"Særlige persondata - art 10\",\"\")","v":"Særlige persondata - art 10"},"Tredjemand f.eks. Tidligere arbejdsgivere","Pligtmæssig behandling i ansættelsesforhold.",null,"Begge dele","Internt i eget IT-system","Nej","Ja","Ja","1-6 mdr"]
["Under ansættelse"]
["Almindelige persondata - artikel 6 ",null,null,null,null,null,null,null,null,null,null,null,"Under ansættelsen","Efter ansættelsen","Efter ansættelsen"]
["Lønoplysninger (inkl. skat, kontonummer, sædvanlig pension)","ja ","almindelige - art 6","Fra den registrerede, Tredjemand f.eks. Tidligere arbejdsgivere","Varetagelse af personaleadministration",{"$f":"IF(C38=\"Almindelige - art 6\",\"Art. 6 stk. 1 b\",\"\")","v":"Art. 6 stk. 1 b"},"Begge dele","Både internt og eksternt","Ja","Ja","Ja",null,"Opbeveres under hele ansættelsen","5 år","5 år"]
["Registreret fravær på grund af ferie, afspadsering o.lign","Ja",{"$f":"IF(B39=\"ja\",\"Almindelige - art 6\",\"\")","v":"Almindelige - art 6"},"Fra den registrerede","Varetagelse af personaleadministration",{"$f":"IF(C39=\"Almindelige - art 6\",\"Art. 6 stk. 1 b\",\"\")","v":"Art. 6 stk. 1 b"},"Begge dele","Både internt og eksternt","Ja","Ja","Ja",null,"5 år","5 år","5 år"]
["Registreret fravær på grund af sygdom eller barns sygdom","Ja",{"$f":"IF(B40=\"ja\",\"Almindelige - art 6\",\"\")","v":"Almindelige - art 6"},"Fra den registrerede","Varetagelse af personaleadministration",{"$f":"IF(C40=\"Almindelige - art 6\",\"Art. 6 stk. 1 b\",\"\")","v":"Art. 6 stk. 1 b"},"Begge dele","Både internt og eksternt","Ja","Ja","Ja",null,"5 år","5 år","5 år"]
["Oplysninger om familie og pårørende","Ja",{"$f":"IF(B41=\"ja\",\"Almindelige - art 6\",\"\")","v":"Almindelige - art 6"},"Fra den registrerede","Varetagelse af personaleadministration",{"$f":"IF(C41=\"Almindelige - art 6\",\"Art. 6 stk. 1 b\",\"\")","v":"Art. 6 stk. 1 b"},"Begge dele","Internt i eget IT-system","Nej","Ja","Ja",null,"Opbeveres under hele ansættelsen","5 år","5 år"]
["Efter- og videreuddannelse","Ja",{"$f":"IF(B42=\"ja\",\"Almindelige - art 6\",\"\")","v":"Almindelige - art 6"},"Fra den registrerede","Varetagelse af personaleadministration",{"$f":"IF(C42=\"Almindelige - art 6\",\"Art. 6 stk. 1 b\",\"\")","v":"Art. 6 stk. 1 b"},"Begge dele","Internt i eget IT-system","Nej","Ja","Ja",null,"Opbeveres under hele ansættelsen","5 år","5 år"]
["Optegnelser fra MUS-samtaler o.lign.","Ja",{"$f":"IF(B43=\"ja\",\"Almindelige - art 6\",\"\")","v":"Almindelige - art 6"},"Internt fra virksomheden","Varetagelse af personaleadministration",{"$f":"IF(C43=\"Almindelige - art 6\",\"Art. 6 stk. 1 b\",\"\")","v":"Art. 6 stk. 1 b"},"Begge dele","Internt i eget IT-system","Nej","Ja","Ja",null,"Opbeveres under hele ansættelsen","1 år","1 år"]
["Opsigelse uden særligt følsomme oplysninger (medarbejderopsigelse)","Ja",{"$f":"IF(B44=\"ja\",\"Almindelige - art 6\",\"\")","v":"Almindelige - art 6"},"Fra den registrerede","Varetagelse af personaleadministration",{"$f":"IF(C44=\"Almindelige - art 6\",\"Art. 6 stk. 1 b\",\"\")","v":"Art. 6 stk. 1 b"},"Begge dele","Internt i eget IT-system","Nej","Ja","Ja",null,"Opbeveres under hele ansættelsen","5 år","5 år"]
["Foto og videomateriale","Ja",{"$f":"IF(B45=\"ja\",\"Almindelige - art 6\",\"\")","v":"Almindelige - art 6"},"Internt fra virksomheden","Varetagelse af personaleadministration",{"$f":"IF(C45=\"Almindelige - art 6\",\"Art. 6 stk. 1 b\",\"\")","v":"Art. 6 stk. 1 b"},"Begge dele","Både internt og eksternt","Ja","Ja","Ja",null,"Opbeveres under hele ansættelsen","5 år","5 år"]
["Registrering af kørekort","Ja",{"$f":"IF(B46=\"ja\",\"Almindelige - art 6\",\"\")","v":"Almindelige - art 6"},"Fra den registrerede","Varetagelse af personaleadministration",{"$f":"IF(C46=\"Almindelige - art 6\",\"Art. 6 stk. 1 b\",\"\")","v":"Art. 6 stk. 1 b"},"Begge dele","Internt i eget IT-system","Nej","Ja","Ja",null,"Opbeveres under hele ansættelsen","5 år","5 år"]
["Stillings- og arbejdsbeskrivelser","Ja",{"$f":"IF(B47=\"ja\",\"Almindelige - art 6\",\"\")","v":"Almindelige - art 6"},"Internt fra virksomheden","Varetagelse af personaleadministration",{"$f":"IF(C47=\"Almindelige - art 6\",\"Art. 6 stk. 1 b\",\"\")","v":"Art. 6 stk. 1 b"},"Begge dele","Internt i eget IT-system","Nej","Ja","Ja",null,"Opbeveres under hele ansættelsen","5 år","5 år"]
["Arbejdsplaner og tjenestelister","Ja",{"$f":"IF(B48=\"ja\",\"Almindelige - art 6\",\"\")","v":"Almindelige - art 6"},"Internt fra virksomheden","Varetagelse af personaleadministration",{"$f":"IF(C48=\"Almindelige - art 6\",\"Art. 6 stk. 1 b\",\"\")","v":"Art. 6 stk. 1 b"},"Begge dele","Både internt og eksternt","Ja","Ja","Ja",null,"5 år","5 år","5 år"]
[]
[]
[]
[]
[]
["Særlige følsomme oplysninger Artikkel 9"]
["Nationalitet","Nej",{"$f":"IF(B55=\"ja\",\"Særligt følsomme - art 9\",\"\")","v":""},null,null,{"$f":"IF(C55=\"Særligt følsomme - art 9\",\"Art. 9 stk. 2 b\",\"\")","v":""}]
["Oplysninger om adressebeskyttelse o.lign.","Ja",{"$f":"IF(B56=\"ja\",\"Særligt følsomme - art 9\",\"\")","v":"Særligt følsomme - art 9"},"Fra den registrerede","Varetagelse af personaleadministration",{"$f":"IF(C56=\"Særligt følsomme - art 9\",\"Art. 9 stk. 2 b\",\"\")","v":"Art. 9 stk. 2 b"},"Begge dele","Både internt og eksternt","Ja","Ja","Ja",null,"Opbeveres under hele ansættelsen","5 år","5 år"]
["Ansættelseskontrakt med særlige vilkår ","Ja",{"$f":"IF(B57=\"ja\",\"Særligt følsomme - art 9\",\"\")","v":"Særligt følsomme - art 9"},"Internt fra virksomheden","Varetagelse af personaleadministration",{"$f":"IF(C57=\"Særligt følsomme - art 9\",\"Art. 9 stk. 2 b\",\"\")","v":"Art. 9 stk. 2 b"},"Begge dele","Internt i eget IT-system","Nej","Ja","Ja",null,"Opbeveres under hele ansættelsen","5 år","5 år"]
["Pensionsordning med særlige helbredsvilkår","Ja",{"$f":"IF(B58=\"ja\",\"Særligt følsomme - art 9\",\"\")","v":"Særligt følsomme - art 9"},"Internt fra virksomheden","Varetagelse af personaleadministration",{"$f":"IF(C58=\"Særligt følsomme - art 9\",\"Art. 9 stk. 2 b\",\"\")","v":"Art. 9 stk. 2 b"},"Begge dele","Både internt og eksternt","Ja","Ja","Ja",null,"Opbeveres under hele ansættelsen","5 år","5 år"]
["Arbejdsskader og arbejdsulykker","Ja",{"$f":"IF(B59=\"ja\",\"Særligt følsomme - art 9\",\"\")","v":"Særligt følsomme - art 9"},"Internt fra virksomheden","Varetagelse af personaleadministration",{"$f":"IF(C59=\"Særligt følsomme - art 9\",\"Art. 9 stk. 2 b\",\"\")","v":"Art. 9 stk. 2 b"},"Begge dele","Både internt og eksternt","Ja","Ja","Ja",null,"Opbeveres under hele ansættelsen","5 år","5 år"]
["Fagforeningsforhold","Nej",{"$f":"IF(B60=\"ja\",\"Særligt følsomme - art 9\",\"\")","v":""},null,null,{"$f":"IF(C60=\"Særligt følsomme - art 9\",\"Art. 9 stk. 2 b\",\"\")","v":""}]
["Helbredsoplysninger","Ja",{"$f":"IF(B61=\"ja\",\"Særligt følsomme - art 9\",\"\")","v":"Særligt følsomme - art 9"},"Fra den registrerede","Varetagelse af personaleadministration",{"$f":"IF(C61=\"Særligt følsomme - art 9\",\"Art. 9 stk. 2 b\",\"\")","v":"Art. 9 stk. 2 b"},"Begge dele","Internt i eget IT-system","Nej","Ja","Ja",null,"Opbeveres under hele ansættelsen","5 år","5 år"]
["Opsigelse med særligt følsomme oplysninger (fyring)","Ja",{"$f":"IF(B62=\"ja\",\"Særligt følsomme - art 9\",\"\")","v":"Særligt følsomme - art 9"},"Internt fra virksomheden","Varetagelse af personaleadministration",{"$f":"IF(C62=\"Særligt følsomme - art 9\",\"Art. 9 stk. 2 b\",\"\")","v":"Art. 9 stk. 2 b"},"Begge dele","Internt i eget IT-system","Nej","Ja","Ja",null,"Opbeveres under hele ansættelsen","5 år","5 år"]
["Biometriske og genetiske persondata","Nej",{"$f":"IF(B63=\"ja\",\"Særligt følsomme - art 9\",\"\")","v":""},null,null,{"$f":"IF(C63=\"Særligt følsomme - art 9\",\"Art. 9 stk. 2 b\",\"\")","v":""}]
["registrering af sygefravær sygestatistik","Ja",{"$f":"IF(B64=\"ja\",\"Særligt følsomme - art 9\",\"\")","v":"Særligt følsomme - art 9"},"Internt fra virksomheden","Varetagelse af personaleadministration",{"$f":"IF(C64=\"Særligt følsomme - art 9\",\"Art. 9 stk. 2 b\",\"\")","v":"Art. 9 stk. 2 b"},"Begge dele","Både internt og eksternt","Ja","Ja","Ja",null,"5 år","5 år","5 år"]
["Religiøs eller filosifisk overbevisning","Ja",{"$f":"IF(B65=\"ja\",\"Særligt følsomme - art 9\",\"\")","v":"Særligt følsomme - art 9"},"Fra den registrerede","Varetagelse af personaleadministration",{"$f":"IF(C65=\"Særligt følsomme - art 9\",\"Art. 9 stk. 2 b\",\"\")","v":"Art. 9 stk. 2 b"},"Begge dele","Internt i eget IT-system","Nej","Ja","Ja",null,"Opbeveres under hele ansættelsen","1-6 mdr","1-6 mdr"]
["Race og etnisk oprindelse","Ja",{"$f":"IF(B66=\"ja\",\"Særligt følsomme - art 9\",\"\")","v":"Særligt følsomme - art 9"},"Fra den registrerede","Varetagelse af personaleadministration",{"$f":"IF(C66=\"Særligt følsomme - art 9\",\"Art. 9 stk. 2 b\",\"\")","v":"Art. 9 stk. 2 b"},"Begge dele","Internt i eget IT-system","Nej","Ja","Ja",null,"Opbeveres under hele ansættelsen","1-6 mdr","1-6 mdr"]
["Seksuelle forhold og orientering","Ja",{"$f":"IF(B67=\"ja\",\"Særligt følsomme - art 9\",\"\")","v":"Særligt følsomme - art 9"},"Fra den registrerede","Varetagelse af personaleadministration",{"$f":"IF(C67=\"Særligt følsomme - art 9\",\"Art. 9 stk. 2 b\",\"\")","v":"Art. 9 stk. 2 b"},"Begge dele","Internt i eget IT-system","Nej","Ja","Ja",null,"Opbeveres under hele ansættelsen","1-6 mdr","1-6 mdr"]
["politisk overbevisning","ja","Særligt følsomme - art 9","Fra den registrerede","Varetagelse af personaleadministration",null,"Begge dele","Internt i eget IT-system","Nej","Ja","Ja",null,"Opbeveres under hele ansættelsen","1-6 mdr","1-6 mdr"]
[]
[]
[]
[]
["Personnummer - Artikel 87"]
["CPR-nummer","Ja",{"$f":"IF(B74=\"ja\",\"CPR. Nr. Art 87\",\"\")","v":"CPR. Nr. Art 87"},"Fra den registrerede","Varetagelse af personaleadministration",{"$f":"IF(C74=\"CPR. Nr. Art 87\",\"Art. 87 og ny databeskyttelseslov\",\"\")","v":"Art. 87 og ny databeskyttelseslov"},"Begge dele","Både internt og eksternt","Ja","Ja","Ja",null,"Opbeveres under hele ansættelsen","5 år","5 år"]
["Artikel 10"]
["Indhentelse af straffeattester","Nej",{"$f":"IF(B76=\"ja\",\"Artikel 10\",\"\")","v":""},null,null,{"$f":"IF(C76=\"Artikel 10\",\"Artikel 10\",\"\")","v":""}]
["Indhentelse af børneattester","Ja",{"$f":"IF(B77=\"ja\",\"Artikel 10\",\"\")","v":"Artikel 10"},"Tredjemand f.eks. Tidligere arbejdsgivere","Varetagelse af personaleadministration",{"$f":"IF(C77=\"Artikel 10\",\"Artikel 10\",\"\")","v":"Artikel 10"},"Begge dele","Internt i eget IT-system","Nej","Ja","Ja",null,"Opbeveres under hele ansættelsen","5 år","5 år"]
["Registrering af strafbare forhold under ansættelsen","Ja",{"$f":"IF(B78=\"ja\",\"Artikel 10\",\"\")","v":"Artikel 10"},"Tredjemand f.eks. Tidligere arbejdsgivere","Varetagelse af personaleadministration",{"$f":"IF(C78=\"Artikel 10\",\"Artikel 10\",\"\")","v":"Artikel 10"},"Begge dele","Internt i eget IT-system","Nej","Ja","Ja",null,"Opbeveres under hele ansættelsen","5 år","5 år"]

{"sheet":"dropdown","index":2,"n_rows":27,"n_cols":15,"rows_kept":27,"cut":false,"hidden":false,"merged":[]}
["Hvilke persondata registreres?","Ja/Nej","Hvilken følsomhed har oplysningerne?","Hvor kommer oplysninger fra?","Med hvilket formål behandles oplysningerne?","Med hvilken hjemmel behandles oplysningerne?","Hvordan opbevares data (analogt eller digitalt)?","Opbevares data på en hosted løsning?","Databehandleraftale","Anvendes samtykke?","Overholdes oplysningspligten?","Hvornår slettes data?","Oplysninger der sletter UNDER ansættelsen","Oplysninger der slettes EFTER ansættelsen","Oplysninger der slettes EFTER ansættelsen"]
[null,"Ja","Artikel 10","Fra den registrerede","Varetagelse af personaleadministration","Art. 6 stk. 1b & e - Hovedhjemmel  (overskrift for 6érne)","Papirarkiv","Hos ekstern IT-partner","Ja","Ja","Ja","Under 1 mdr","Under 1 mdr","Under 1 mdr","Under 1 mdr"]
[null,"Nej","Almindelige - art 6","Internt fra virksomheden","Pligtmæssig behandling i ansættelsesforhold.","Art. 9 stk. 2b & H - Hovedhjemmel (overskrift for 9èrne)","Digitalt","Internt i eget IT-system","Nej","Nej","Nej","1-6 mdr","1-6 mdr","1-6 mdr","1-6 mdr"]
[null,null,"Særligt følsomme - art 9","Tredjemand f.eks. Tidligere arbejdsgivere",null,"(1) Art. 6 stk. 1 a - Samtykke (almindelig oplysning)","Begge dele","Både internt og eksternt","Undersøges nærmerte",null,"Undersøges nærmere","6-12 mdr","6-12 mdr","6-12 mdr","6-12 mdr"]
[null,null,null,null,null,"(2) Art. 6 stk. 1 b - Opfyldelse af kontrakt","Andet","Undersøges nærmere",null,null,null,"1 år","1 år","1 år","1 år"]
[null,null,null,null,null,"(3) Art. 6 stk. 1 c - Overholde retligforpligtelse",null,null,null,null,null,"2 år","2 år","2 år","2 år"]
[null,null,null,null,null,"(4) Art. 6 stk. 1 d - Beskyttelse af registrerede",null,null,null,null,null,"3 år","3 år","3 år","3 år"]
[null,null,null,null,null,"(5) Art. 6 stk. 1 e - Udførsel af pålagt opgave",null,null,null,null,null,"5 år","5 år","5 år","5 år"]
[null,null,null,null,null,"(6) Art. 6 1 f - Forfølgelse af legitm interesse",null,null,null,null,null,"Efter gældende forældelsesregler","Opbeveres under hele ansættelsen","Slettes løbende efter interne regler","Efter gældende forældelsesregler"]
[null,null,null,null,null,"(7) Art. 9 stk. 2 a - Samtykke (følsom oplysning)",null,null,null,null,null,null,"Slettes løbende efter interne regler","Efter gældende forældelsesregler"]
[null,null,null,null,null,"(8) Art. 9 stk. 2 b - Overholde datansvarliges forpligtelser også i ansættelsesforhold",null,null,null,null,null,null,"Efter gældende forældelsesregler"]
[null,null,null,null,null,"(9) Art. 9 stk. 2 c - Beskytte vitale interesser"]
[null,null,null,null,null,"(10) Art. 9 stk. 2 e - Oplysninger offenliggjort af den registrerede"]
[null,null,null,null,null,"(11) Art 9 stk. 2 f - Retskrav kan fastlægges"]
[null,null,null,null,null,"(12) Art. 9 stk. 2 h - Forebyggelse, ydelser og behandling"]
[null,null,null,null,null,"(13) Art. 9 stk. 2 j - Videnskabelige formål"]
[null,null,null,null,null," Art 6 stk. 1 f - Interesseafvejning"]
[null,null,null,null,null,"Art 9 stk. 2 i - Folkesundhed"]
[null,null,null,null,null,"Art. 6 stk. 1 a & 6 stk. 1 b - Samtykke & kontrakt"]
[null,null,null,null,null,"Art. 6 stk. 1 c & e - Pligtmæssig udførsel af opgave"]
[null,null,null,null,null,"Art. 9 stk. 2 a &  b - Samtykke & kontrakt"]
[null,null,null,null,null,"Art. 9 stk. 2 g - Væsentlige samfundsinteresser"]
[]
[]
[]
[]
[null,null,null,0]